Cogmind - Beta 16 *** ADVENTURER MODE // 2025.11.05 @ 21:28:24 Player: videl Result: Self-destructed Performance ------------- Evolutions (2) 1000 Regions Visited (5) 1000 Robots Destroyed (27) 135 Value Destroyed (831) 831 Prototype IDs (2) 40 Alien Tech Used (0) 0 Bonus (84) 84 TOTAL SCORE: 3090 Bonus ------- Follower Combat Kills 84 Cogmind --------- Core Integrity 317/550 Matter 500/500 Energy 240/240 System Corruption 0% Temperature Cool (0) Movement Flying (280) Ox3 Location -8/Materials Parts ------- > --- POWER (1) -------- Nuclear Core > --- PROPULSION (3) --- Flight Unit > --- UTILITY (4) ------ High-capacity Matter Pod > --- WEAPON (3) ------- Axe > --- INVENTORY (5) ---- Armored Wheel Shock Rifle Axe Axe Peak State ------------ > --- POWER ------------ Improved Ion Engine > --- PROPULSION ------- Aluminum Leg Aluminum Leg Armored Wheel > --- UTILITY ---------- Small Storage Unit Medium Storage Unit High-capacity Matter Pod Makeshift Terrain Scanner > --- WEAPON ----------- Axe Axe Axe > --- INVENTORY -------- Light Treads Light Treads Wheel Wheel Armored Wheel [Rating: 25] Favorites ----------- Power Light Ion Engine Engine Light Ion Engine Power Core Nuclear Core Propulsion Light Treads Treads Light Treads Leg Aluminum Leg Wheel Armored Wheel Flight Unit Flight Unit Utility Medium Storage Unit Device Seismic Detector Storage Medium Storage Unit Weapon Light Cannon Energy Gun EM Pulse Gun Ballistic Cannon Light Cannon Slashing Weapon Axe Build | -11 -10 -10 -10 -9 -8 ------- Run | Yrd Mat Min Exi Min Mat Slots Evolved 4 | . . . . . 4 Power . | . . . . . . Propulsion 1 | . . . . . 1 Utility 2 | . . . . . 2 Weapon 1 | . . . . . 1 Parts Attached 27 | 7 3 . 1 7 9 Power 4 | 1 . . . 2 1 Engine 3 | 1 . . . 2 . Core 1 | . . . . . 1 Reactor . | . . . . . . Propulsion 11 | 2 . . . 5 4 Treads 4 | 2 . . . 1 1 Leg 2 | . . . . 2 . Wheel 3 | . . . . 2 1 Hover . | . . . . . . Flight 2 | . . . . . 2 Utility 5 | 2 1 . 1 . 1 Device 2 | 1 . . 1 . . Storage 3 | 1 1 . . . 1 Processor . | . . . . . . Hackware . | . . . . . . Protection . | . . . . . . Artifact . | . . . . . . Weapon 7 | 2 2 . . . 3 Energy Gun 2 | 2 . . . . . Energy Cannon . | . . . . . . Ballistic Gun . | . . . . . . Ballistic Cannon 2 | . 2 . . . . Launcher . | . . . . . . Special Weapon . | . . . . . . Impact Weapon . | . . . . . . Slashing Weapon 3 | . . . . . 3 Piercing Weapon . | . . . . . . Special Melee Weapon . | . . . . . . Unidentified Prototypes . | . . . . . . Parts Lost 8 | . . . . 4 4 Power 2 | . . . . 1 1 Propulsion 2 | . . . . . 2 Utility 1 | . . . . . 1 Weapon 3 | . . . . 3 . Highest Loss Streak 3 | . . . . 3 2 To Critical Strikes . | . . . . . . Average Backups 8 | 3 7 9 10 9 6 Power . | . 1 1 1 . . Propulsion 4 | 2 4 6 6 6 3 Utility 1 | . 1 1 2 2 . Weapon 1 | . 1 1 1 . 1 Tool/Special . | . . . . . . Unused Backups 10 | . 2 1 . 1 6 Power 1 | . . . . 1 . Propulsion 3 | . . . . . 3 Utility 2 | . 1 1 . . . Weapon 4 | . 1 . . . 3 Tool/Special . | . . . . . . Average Slot Usage (%) 93 | . 100 100 100 92 73 Engine 12 | . 14 14 14 13 6 Treads 21 | . 28 28 28 18 3 Leg 3 | . . . . 7 10 Wheel 1 | . . . . 1 4 Device 11 | . 14 14 14 14 1 Storage 15 | . 14 14 14 14 21 Energy Gun 2 | . 13 . . 1 . Ballistic Cannon 18 | . 14 28 28 20 . Slashing Weapon 3 | . . . . . 19 Peak Build Rating 25 | 7 8 8 14 14 25 Average Rating 10 | 5 7 8 11 13 15 On Entrance 8 | . 7 8 8 14 13 Avg Prop Armor Cover (%) 7 | . . . . 21 6 Naked Turns . | . . . . . . Heaviest Build 36 | 13 20 20 20 22 36 Greatest Support 60 | 40 40 40 40 40 60 Greatest Overweight (x) 4 | . . . . 3 4 Average Overweight (x) . | . . . . . 1 Largest Inventory Capacity 10 | 8 10 10 10 10 10 Average Capacity 9 | 7 8 10 10 10 8 Most Carried 10 | 7 10 10 10 10 10 Average Carried 8 | 3 7 9 10 9 6 Final Capacity 10 | 8 10 10 10 10 5 Final Carried 10 | 6 10 10 10 8 4 Class Distribution -------------------- 100% | Mutant Dominant Class ---------------- Mutant | -10/Materials Mutant | -10/Mines Mutant | -10/Exiles Mutant | -9/Mines Mutant | -8/Materials Resources | -11 -10 -10 -10 -9 -8 ----------- Run | Yrd Mat Min Exi Min Mat Matter Collected 902 | 208 94 267 . 157 176 Remotely . | . . . . . . Salvage Created 870 | 16 106 108 . 54 586 Parts 58 | 2 7 7 . 2 40 Haulers Intercepted . | . . . . . . Recyclers Shooed 1 | . . 1 . . . Parts Field Recycled . | . . . . . . Retrieved Matter . | . . . . . . Parts Self-Destructed . | . . . . . . Prevented . | . . . . . . Parts Restored . | . . . . . . Kills | -11 -10 -10 -10 -9 -8 ------- Run | Yrd Mat Min Exi Min Mat Combat Hostiles Destroyed 28 | . 4 5 . 6 13 Melee 13 | . . . . . 13 Guns 4 | . 3 . . 1 . Cannons 11 | . 1 5 . 5 . Classes Destroyed 9 | 1 2 . . 2 4 Tunneler 1 | 1 . . . . . Recycler 1 | . . . . . 1 Watcher 1 | . . . . . 1 Swarmer 8 | . 2 2 . . 4 Grunt 12 | . 2 3 . 1 6 Sentry 2 | . . . . . 2 Demolisher 1 | . . . . 1 . Hunter 1 | . . . . . 1 Assembled 4 | . . . . 4 . Best Kill Streak 5 | 1 2 3 . 5 5 Combat Bots Only 5 | . 2 3 . 5 4 Max Kills in Single Turn 2 | 1 1 2 . 1 2 Gunslinging . | . . . . . . Exploded . | . . . . . . Melee 2 | . . . . . 2 Uniques/NPCs Destroyed . | . . . . . . Combat | -11 -10 -10 -10 -9 -8 -------- Run | Yrd Mat Min Exi Min Mat Hostile Shots Fired 199 | . 24 15 . 72 88 Missed 51 | . 5 5 . 18 23 Hits 148 | . 19 10 . 54 65 Melee 2 | . . . . 2 . Projectile 146 | . 19 10 . 52 65 AOE 3 | . . . . 3 . Critical Strikes 3 | . . . . 1 2 Part Disruptions 4 | . . . . 4 . Damage Taken 1527 | . 182 83 . 577 685 Core 352 | . 17 8 . 94 233 Absorbed by Shields . | . . . . . . Ignored by Resistances 449 | . 52 26 . 170 201 Core Remaining (%) 76 | 100 . . . 52 . Volleys Fired 46 | 1 10 9 . 26 . Largest 2 | 2 2 2 . 2 . Hottest 90 | 90 70 60 . 70 . Shots Fired 84 | 2 20 18 . 44 . Gun 22 | 2 10 . . 10 . Cannon 62 | . 10 18 . 34 . Launcher . | . . . . . . Special . | . . . . . . Kinetic 62 | . 10 18 . 34 . Thermal 1 | 1 . . . . . Explosive . | . . . . . . Electromagnetic 21 | 1 10 . . 10 . Robot Hit Streak 20 | 2 14 20 . 14 . Robot Miss Streak 2 | . 1 2 . 2 . Penetration Max . | . . . . . . Secondary Targets . | . . . . . . Shots Hit Robots 95 | 2 15 12 . 34 32 Core Hits 46 | 1 5 8 . 16 16 Critical Kills . | . . . . . . Critical Parts Destroyed . | . . . . . . Critical Strikes 10 | . 1 1 . 1 7 Blast 3 | . 1 1 . 1 . Sever 7 | . . . . . 7 Melee Attacks 38 | . . . . . 38 Impact . | . . . . . . Slashing 38 | . . . . . 38 Piercing . | . . . . . . Sneak Attacks 3 | . . . . . 3 Combat Hostiles 2 | . . . . . 2 Follow-up Attacks 7 | . . . . . 7 Damage Inflicted 2269 | 26 287 228 . 553 1175 Guns 191 | 26 99 . . 66 . Cannons 847 | . 145 225 . 477 . Explosions 42 | . 42 . . . . Melee 1175 | . . . . . 1175 Ramming 14 | . 1 3 . 10 . Kinetic 847 | . 145 225 . 477 . Thermal 55 | 13 42 . . . . Explosive . | . . . . . . Electromagnetic 178 | 13 99 . . 66 . Impact . | . . . . . . Slashing 1175 | . . . . . 1175 Piercing . | . . . . . . Highest Corruption . | . . . . . . Average Corruption . | . . . . . . Corruption Purged . | . . . . . . Corruption Blocked . | . . . . . . Overload Shots . | . . . . . . Overflow Damage 29 | . . . . 15 14 Projectiles 15 | . . . . 15 . Explosions . | . . . . . . Melee 14 | . . . . . 14 Knockbacks 16 | . . 4 . 12 . Impact . | . . . . . . Kinetic 14 | . . 2 . 12 . Secondary 2 | . . 2 . . . Self-Inflicted Damage 37 | . 32 . . 5 . Shots 1 | . 1 . . . . Rammed 6 | . 1 3 . 2 . Targets Rammed 6 | . 1 3 . 2 . Kicked . | . . . . . . Crushed . | . . . . . . Highest Temperature 66 | 30 66 21 . 45 15 Average Temperature 19 | 18 23 10 . 17 15 Received Heat Transfer 780 | . 84 33 . 330 333 Siege Activations . | . . . . . . Martial Activations . | . . . . . . Shielding Activations . | . . . . . . Robots Disrupted . | . . . . . . Combat Hostiles . | . . . . . . Robots Corrupted . | . . . . . . Combat Hostiles . | . . . . . . Parts Fried . | . . . . . . Impact Corruptions . | . . . . . . Robots Melted . | . . . . . . Combat Hostiles . | . . . . . . Parts Melted . | . . . . . . Heat Transferred 87 | 37 50 . . . . Parts Sabotaged . | . . . . . . Parts Stolen . | . . . . . . Parts Stripped . | . . . . . . Power Chain Reactions 1 | . 1 . . . . Alert | -11 -10 -10 -10 -9 -8 ------- Run | Yrd Mat Min Exi Min Mat Maximum Alert Level . | . . . . . . Low Security (%) 100 | 100 100 100 . 100 100 Level 1 . | . . . . . . Level 2 . | . . . . . . Level 3 . | . . . . . . Level 4 . | . . . . . . Level 5 . | . . . . . . High Security . | . . . . . . Max Security . | . . . . . . Peak Influence 102 | 5 67 81 . 71 102 Initial . | . . . . . . Average 17 | . 15 13 . 8 39 Influence Increases 784 | 5 144 162 . 91 382 Destroy 0b10 Robot/C 560 | . 80 140 . 80 260 Destroy 0b10 Robot/NC 15 | 5 . . . . 10 Destroy Leader 102 | . 20 20 . 10 52 Allied During Kill 3 | . . 2 . 1 . Successful Hack 7 | . 7 . . . . Destroy Structure 7 | . 7 . . . . Lose Combat Pursuer 90 | . 30 . . . 60 Influence Decreases 732 | 5 144 162 . 91 330 Time Decay 692 | 5 144 162 . 81 300 Lost Part 40 | . . . . 10 30 Squads Dispatched 2 | . . 1 . . 1 Investigation . | . . . . . . Extermination . | . . . . . . Reinforcement . | . . . . . . Assault 1 | . . 1 . . . Garrison 1 | . . . . . 1 Intercept . | . . . . . . Searches Triggered . | . . . . . . Construction Impeded . | . . . . . . Haulers Reinforced . | . . . . . . Active Scanning Responses . | . . . . . . Cargo Convoy Interrupts . | . . . . . . Stealth | -11 -10 -10 -10 -9 -8 --------- Run | Yrd Mat Min Exi Min Mat Distress Signals 1 | . . . . . 1 Communications Jammed . | . . . . . . Distress Signals . | . . . . . . Times Spotted 69 | . 14 8 . 27 20 Peak Tracking Total 19 | . 6 4 . 19 6 Tactical Retreats 11 | . 1 . . 6 4 Traps | -11 -10 -10 -10 -9 -8 ------- Run | Yrd Mat Min Exi Min Mat Traps Triggered . | . . . . . . Indirectly . | . . . . . . Trap Hack Attempts . | . . . . . . Triggered . | . . . . . . Disarmed . | . . . . . . Reprogrammed . | . . . . . . Reused . | . . . . . . Traps Extracted . | . . . . . . Installed . | . . . . . . Triggered . | . . . . . . Machines | -11 -10 -10 -10 -9 -8 ---------- Run | Yrd Mat Min Exi Min Mat Machines Disabled . | . . . . . . Max in Single Turn . | . . . . . . Machines Repaired . | . . . . . . Machines Dismantled . | . . . . . . Machines Sabotaged . | . . . . . . Overloaded Fab Kills . | . . . . . . Hacking | -11 -10 -10 -10 -9 -8 --------- Run | Yrd Mat Min Exi Min Mat Machines Accessed 2 | . 1 . 1 . . Terminals 1 | . 1 . . . . Fabricators . | . . . . . . Repair Stations . | . . . . . . Recycling Units . | . . . . . . Scanalyzers . | . . . . . . Garrison Access . | . . . . . . Total Hacks 14 | . 5 . 9 . . Successful 11 | . 2 . 9 . . Failed 3 | . 3 . . . . Catastrophic . | . . . . . . Database Lockouts . | . . . . . . Manual 1 | . . . 1 . . Terminals 5 | . 5 . . . . Fabricators . | . . . . . . Repair Stations . | . . . . . . Recycling Units . | . . . . . . Scanalyzers . | . . . . . . Garrison Access . | . . . . . . Terminal Hacks 11 | . 2 . 9 . . Record 9 | . . . 9 . . Prototype ID Bank 1 | . 1 . . . . Dispatch Records 1 | . 1 . . . . Fabricator Hacks . | . . . . . . Repair Station Hacks . | . . . . . . Recycling Unit Hacks . | . . . . . . Scanalyzer . | . . . . . . Garrison Access Hacks . | . . . . . . Unauthorized Hacks . | . . . . . . Terminals . | . . . . . . Fabricators . | . . . . . . Repair Stations . | . . . . . . Recycling Units . | . . . . . . Scanalyzers . | . . . . . . Garrison Access . | . . . . . . Data Cores Recovered . | . . . . . . Used . | . . . . . . Hacking Detections . | . . . . . . Full Trace Events . | . . . . . . Feedback Events . | . . . . . . Feedback Blocked . | . . . . . . Robot Schematics Acquired . | . . . . . . Robots Built . | . . . . . . Authchips . | . . . . . . Time . | . . . . . . Total Robot Build Rating . | . . . . . . Part Schematics Acquired . | . . . . . . Parts Built . | . . . . . . Authchips . | . . . . . . Time . | . . . . . . Total Part Build Rating . | . . . . . . Part Studies Acquired . | . . . . . . Parts Repaired . | . . . . . . Time . | . . . . . . Parts Recycled . | . . . . . . Recycled Matter . | . . . . . . Retrieved Matter . | . . . . . . Retrieved Components . | . . . . . . Parts Scanalyzed . | . . . . . . Part Schematics Acquired . | . . . . . . Parts Damaged . | . . . . . . Bothacking | -11 -10 -10 -10 -9 -8 ------------ Run | Yrd Mat Min Exi Min Mat Used RIF Installer . | . . . . . . Robots Hacked . | . . . . . . Non-combat . | . . . . . . Combat . | . . . . . . Robot Hacks Applied . | . . . . . . Relay Couplers Released . | . . . . . . Fabnet Peak Effective % . | . . . . . . Robots Rewired . | . . . . . . Allies Hacked . | . . . . . . Hacks Repelled . | . . . . . . Allies | -11 -10 -10 -10 -9 -8 -------- Run | Yrd Mat Min Exi Min Mat Total Allies 1 | . . 1 . . . Largest Group 1 | . . 1 1 1 . Highest-Rated Group 31 | . . 31 31 31 . Highest-Rated Ally 31 | . . 31 31 31 . Total Orders . | . . . . . . Ally Attacks 23 | . . 12 . 11 . Total Damage 273 | . . 146 . 127 . Kills 4 | . . 2 . 2 . Allies Corrupted . | . . . . . . Allies Melted . | . . . . . . Intel | -11 -10 -10 -10 -9 -8 ------- Run | Yrd Mat Min Exi Min Mat Active Infowar (turns) 3004 | 39 683 860 705 631 86 Terrain 1110 | . . . 393 631 86 Seismic 1894 | 39 683 860 312 . . Robot Analysis Total . | . . . . . . Derelict Logs Recovered 2 | . . 1 . 1 . Drone Launches . | . . . . . . Drone Recoveries . | . . . . . . Exploration | -11 -10 -10 -10 -9 -8 ------------- Run | Yrd Mat Min Exi Min Mat Turns Passed 3915 | 334 683 860 705 631 702 Spaces Moved 2124 | 204 373 477 434 350 286 Core 26 | 12 . . . 14 . Treads 1764 | 192 373 477 434 242 46 Legs 265 | . . . . 89 176 Wheels 5 | . . . . 5 . Hover . | . . . . . . Flight 64 | . . . . . 64 Fastest Speed 50 | 50 160 160 160 95 117 Average Speed 163 | 153 160 160 160 153 201 Slowest Speed 357 | 160 160 160 160 240 357 Overloaded Moves . | . . . . . . Propulsion Burnouts . | . . . . . . Robots Hopped . | . . . . . . Potential Cave-ins . | . . . . . . Cave-ins Triggered . | . . . . . . Exploration Rate (%) 48 | 10 53 85 70 57 17 Regions Visited 5 Branch Regions 3 Pre-discovered Areas . | . . . . . . Known Exits Taken . | . . . . . . Unknown Exits Taken 5 | 1 1 1 1 1 . Scrap Searched 3 | . . 1 . 2 . Spaces Dug . | . . . . . . Terrain Destroyed 5 | . 5 . . . . Melee . | . . . . . . Projectile . | . . . . . . AOE 5 | . 5 . . . . Terrain Rammed . | . . . . . . Walls Destroyed . | . . . . . . Machines Disabled . | . . . . . . Actions | -11 -10 -10 -10 -9 -8 --------- Run | Yrd Mat Min Exi Min Mat Total 2419 | 222 440 555 445 395 362 Wait 124 | . 41 65 8 4 6 Move 2119 | 203 372 476 433 349 286 Hop . | . . . . . . Pick Up 34 | 11 8 1 . 1 13 Fast Attach 3 | 2 . . 1 . . Attach 17 | 5 2 . . 2 8 Detach 2 | . . . . . 2 Swap 14 | . 2 . . 8 4 Drop 23 | . 4 1 1 3 14 Fire 46 | 1 10 9 . 26 . Melee 29 | . . . . . 29 Ram 2 | . . . . 2 . Kick . | . . . . . . Crush 4 | . 1 3 . . . Escape Stasis . | . . . . . . Rewire 2 | . . . 2 . . Trap . | . . . . . . Miscellaneous . | . . . . . . Route ------- -11/Scrapyard -10/Materials (discovered 3 exits: [*Mat] / [*Min x2]) -10/Mines (discovered 2 exits: [*Mat] / *Exi) -10/Exiles (discovered 2 exits: [*Min x2]) -9/Mines (discovered 2 exits: [*Mat x2]) -8/Materials (discovered 1 exit: *Fac) History --------- Turn | Location | Event 2 | -11/Scrapyard | Met Revision 17 8 | -11/Scrapyard | Discovered new exit (range 15) 335 | -11/Scrapyard | Entered Materials 336 | -10/Materials | Build established: Mutant 381 | -10/Materials | Discovered new exit (range 8) 502 | -10/Materials | Discovered new exit (range 3) 690 | -10/Materials | Discovered new exit (range 16) 1018 | -10/Materials | Entered Mines 1019 | -10/Mines | Met a Derelict testing a Signal Generator 1092 | -10/Mines | Found a damaged Exp. Sensor Array with a note attached 1276 | -10/Mines | Discovered new exit (range 7) 1798 | -10/Mines | Learned location of 1 exit from Materials 1870 | -10/Mines | Deemed a non-threat by the Exiles lab entrance 1870 | -10/Mines | Discovered new exit (range 5) 1878 | -10/Mines | Entered Exiles 1878 | -10/Exiles | Found Exiles lab destroyed 1878 | -10/Exiles | Accompanied by 1 ally 2272 | -10/Exiles | Discovered new exit (range 14) 2492 | -10/Exiles | Discovered new exit (range 15) 2583 | -10/Exiles | Entered Mines 2583 | -9/Mines | Accompanied by 1 ally 2584 | -9/Mines | Met a Derelict bent on vengeance 2728 | -9/Mines | Discovered new exit (range 12) 2834 | -9/Mines | Learned location of 1 exit from Proximity Caves 2848 | -9/Mines | Discovered new exit (range 10) 2953 | -9/Mines | Assembled infested the area 3133 | -9/Mines | Lost 3 parts (1p2w) 3214 | -9/Mines | Entered Materials 3214 | -8/Materials | Evolved 4 slots: Propulsion x1, Utility x2, Weapon x1 3215 | -8/Materials | Identified exit to Factory 3564 | -8/Materials | Garrison activated, responded to threat 3916 | -8/Materials | Self-destructed Last Messages --------------- R-06 Scavenger collects Beam Rifle. K-01 Serf collects debris. R-06 Scavenger collects Aluminum Leg. K-01 Serf collects debris. R-06 Scavenger collects Imp. Heat Sink. K-01 Serf collects debris. C-30 ARC bursts open, deploying its payload. H-55 Commando unfolds itself. Penetrated by Slug. R-06 Scavenger destroyed. Penetrated by Slug. Slug penetrates Wall. Penetrated by Slug. Processing Tank disabled. H-55 Commando Carbon-fiber Leg severed. H-55 Commando destroyed. R-06 Scavenger collects Gauss Rifle. R-06 Scavenger collects Aluminum Leg. [A new version of Cogmind is available, see F1 News page.] Map ----- +----------------------------------------------------+ | ??????????????????????????????????????? | | ??????????????????????????????????????? | | ??????????????????????????????????????? | | ??????????????????????????????????????? | | ??????????????????????????????????????? | | ???????????????###########????????????? | | ???????????#???# "" #????????????? | | ????????#### ??# [! "T" #????????????? | | ????????# ?# =[= #????????????? | | ????????# !#%= """"" #????????????? | | ????????#[ """*#* """"" #????????????? | | ????????# R"=+%= """"" #????????????? | | ????????# """!# % ! #????????????? | | ????????# # % %[ #????????????? | | ????????####+######+###########???????? | | ????? #???????? | | ????? < # ??????? | | ?????!]] """ !!= % # ??????? | | ??????? ? """ !! ####=### ??????? | | ??????? ???""" != #??# #?? ??????? | | ??????????? "%" #??# #?# #?????? | | ?????????? " #??# #?# #?????? | | ?????????##########+####??# #?# #?????? | | ????????????????# ??????# #?# ####### | | ????????????????# #### #?# ## # | | ????????????????# + @ #?# ## # | | ????????????????# ####%### ## # | | ????????????????# ??????# ## # = # | | ??????????????????? ??????#*= "%+== # | | ????????"??????????#??????# ## #! # | | ??????????????????????????# ### ##! # | | ??????????????????????????#+#?# ## # | | ?????????????????????????? ?# ## # | | ????????????????????????? " "?# ####### | | ???????#???????????#? ??? """?# #?????? | | ? ??????????????????????? """?# ######? | | ?????????"??????????????? """?# # # | | ?????????????????+??????? """?# # # | | ?????#???????????# ?+???? ???# # """ # | | ?????????????????# ????? ???# # """ # | | ? ???????????????# #####+##### # """ # | | ??#####??? ? ????# # # | | ### ############ # """ # | | "" + """ # | | ### ###### ########## G" # """ # | | ??## ###?###+########### "" # # | | #### ##???# = = # =# # | | ## #????# + # # | | ## #????# # ####### | | ## ##???# # #????? | +----------------------------------------------------+ Best States ------------- Heat Dissipation 31 Energy Generation 14 Energy Capacity 265 Matter Stores 500 Matter Capacity 500 Sight Range 16 Terrain Scan Range 18 Terrain Scan Density 10 Resistance: KI 20 Resistance: TH 20 Resistance: EX 20 Resistance: EM 20 Resistance: I 20 Resistance: S 20 Resistance: P 20 Evasion (%) 55 Recoil Reduction 3 Offensive Hacking 10 Item Schematics ----------------- None Robot Schematics ------------------ None Fabricated ------------ Nothing Repaired ---------- Nothing Studied --------- None Alien Tech Used ----------------- None Achievements -------------- Ambidextrous I Have A Map? I Survived The Infestation Tourist Challenges ------------ None Game ------ Seed BlastMultitargetingTreads Manual? 0 Play Time 00:27:52 Cumulative 2.3 hours Start 2025.11.04 @ 18:10:13 End 2025.11.05 @ 21:28:24 Sessions 3 Manual Loads 0 Difficulty Adventurer Special Mode None Game No. 3 Rogue 0 Adventurer 3 Explorer 0 Win Type - Total 0 Types 0/0/0/0/0/0/0/0/0/0 Lore% 1 Gallery% 5 Achievement% 6 Wizard Run 0 Options --------- Layout 1 ASCII 0 Keyboard 0 Movement Mouse Keybinds 0 Fullscreen 1 Font 24/Smallcaps Map View 50x35 Zoom Use 0% Tactical HUD 0 Map Filters NONE Filters NONE Steam 0 RUN: 5627cf84-d679-4be1-8868-12d6ba387a9e